Workbook

Sheet READ ME FIRST
B1: MCV 5-Dose Vial Assessment Support Tool
B2: For questions or support, contact Linksbridge's MCV 5-dose team: lena.stashko@linksbridge.com; sheldon.halsted@linksbridge.com; and/or maggie.archbold@linksbridge.com
B3: Overview
B5: The MCV 5-dose assessment support tool is a simple model for assessing and comparing the programmatic, financial, and logistical trade-offs between 5-dose and 10-dose MCV vials. It aims to help country-level decision-makers compare products and estimate its impact on coverage, total systems cost, and cold chain requirements. The tool can be used by any country interested in comparing MCV 10-dose and 5-dose products.
B7: Disclaimer: The MCV 5-dose assessment support tool aims to inform vaccine product selection. Please note that there is limited data available on the impact of MCV 5-dose vials on wastage rates, coverage, and costs; adjust the inputs as needed to account for this uncertainty. This model is meant to provide insights into the potential impact of transitioning to 5-dose vials and should not replace detailed forecasting or operational and budget planning.
B9: User Guide
B11: Inputs
B13: In the Inputs worksheet, you can select your country to model for and which vaccines to compare, and can adjust assumptions around coverage, wastage, and costs.
B15: Category | C15: Description | F15: Sources
B16: Country | C16: • Lets you select the country being analyzed and autopopulates target population size • You can also ene | F16: UNPD 2022 Revision, birth cohort size in 2022, autopopulated for the country listed as the reference
B17: Coverage | C17: • Coverage is autopopulated based on WUENIC Coverage estimates for MCV1 and MCV2 in 2021 • We modeled the intervention effect across different baseline MCV1 and MCV2 coverage rates • We applied the intervention effect (+ 4.9% for MCV1, + 3.5% for MCV2) to baseline coverage up to 82.1% for MCV1 and 43.0% for MCV2 • Beyond the baseline coverage found in the Zambia study, we assumed diminishing returns, with eventually no intervention effect once baseline coverage reaches 95% • As baseline MCV coverage increases, the impact of switching to 5-dose vials on coverage decreases | F17: WUENIC 2022 data, coverage in 2021 autopopulated for the country listed as the reference
B18: Wastage | C18: • Given the uncertainty of the impact of 5-dose vials on wastage, and the various factors that influence wastage, this analysis allows you to select from two different sources for wastage assumptions: 1) The WHO/UNICEF Measles and Measles-Rubella (MR) Vaccine Five-Dose Vial Presentations Facts Sheet 2021 2) The results from the Zambia study (Krudwig et al., 2020) | F18: WHO/UNICEF wastage
F19: Zambia coverage and wastage study
B20: Program Costs | C20: • The additional annual financial and economic costs per dose administered associated with switching from 10-dose to 5-dose vials • Additional costs take into account cold chain, transport, outreach, human resources, and wastage disposal costs • Data came from the Zambia study | F20: Zambia 5-dose vial coverage and wastage study
B21: Vaccine Costs & Cold Chain | C21: • Lets you compare the current 10-dose product, as well as first and second options for switching to 5-dose vials • Different options have different prices and cold chain requirements | F21: Price: UNICEF M/MR vaccine prices
F22: Cold chain: Gavi Detailed Product Profiles
B24: Results
B26: The Results worksheet shows a comparison of 5- and 10-dose vials in terms of vaccine delivery, total systems costs, cold chain requirements, and additional considerations.
B28: Category | C28: Description
B29: Vaccine Delivery | C29: Shows the impact of switching to 5-dose vials on total required supply, doses administered, and doses wasted.
B30: Total Systems Costs | C30: Shows the impact of switching to 5-dose vials on vaccine procurement cost and total cost per vaccinated child – and also for the entire country, Gavi, and the total.
B31: Cold Chain Requirements | C31: Shows the wastage-adjusted cold chain volume per dose administered and for the entire country.
B34: Impact
B36: The Impact worksheet is a high-level summary comparing the impact of 5-dose vials on the countries' vaccine delivery program, costs, and cold-chain, as well as additional considerations.
B39: Glossary & Calculations
B41: Category | C41: Description | F41: Calculation
B42: Number of doses administered | C42: The number of M and MR doses administered to children, including both MCV1 and MCV2 doses | F42: 10-dose vial: (target population * MCV1 coverage) + (target population * MCV2 coverage)
F43: 5-dose vial: (target population * (MCV1 coverage + increase in MCV1 coverage)) + (target population * (MCV2 coverage + increase in MCV2 coverage))
B44: Total required supply | C44: The demand for M and MR, considering target population, number of doses, coverage, and wastage rate | F44: Number of doses administered * wastage factor [1 / (1 – vial-size wastage)]
B45: Number of doses wasted | C45: The number of doses wasted out of the total required supply, based on the wastage rates | F45: Total required supply – number of doses administered
B46: Vaccine price | C46: The vaccine price per dose, as reported by UNICEF | F46: No calculation (input)
B47: Vaccine procurement cost per vaccinated child | C47: The vaccine cost per dose administered, adjusted for wastage | F47: Vaccine price * (total required supply / number of doses administered)
B48: Incremental non-vaccine costs per vaccinated child | C48: The additional annual costs per dose administered associated with switching from 10-dose to 5-dose vials. Additional costs take into account cold chain, transport, outreach, human resources, and wastage disposal costs. | F48: No calculation (input)
B49: Total costs per vaccinated child | C49: The wastage-adjusted vaccine procurement cost per vaccinated child. For 5-dose vials, this also includes the incremental non-vaccine costs per vaccinated child. | F49: 5-dose vial: Vaccine procurement cost per vaccinated child + incremental non-vaccine costs per vaccinated child
B50: Total vaccine procurement costs for country | C50: The total vaccine procurement costs for the country | F50: Vaccine price * total required supply * country co-financing share
B51: Total vaccine procurement costs for Gavi | C51: The total vaccine procurement costs for Gavi, if Gavi co-finances | F51: Vaccine price * total required supply * Gavi co-financing share
B52: Total vaccination program costs for country | C52: The total vaccine procurement costs for the country. For 5-dose vials, this also includes the incremental non-vaccine costs associated with switching from 10- to 5-dose vials | F52: 5-dose vial: (Vaccine price * total required supply * conutry co-financing share) + (number of doses administered * incremental non-vaccine costs per vaccinated child)
B53: Total vaccination program costs (including Gavi procurement cost) | C53: The total vaccine procurement costs to country and Gavi and the incremental programmatic costs for 5-dose vials. | F53: 5-dose vial: (Vaccine price * total required supply) + (number of doses administered * incremental non-vaccine costs per vaccinated child)
B54: Cold chain volume per dose | C54: Cold chain volume required per dose (in cm3) from the Gavi detailed product profiles | F54: No calculation (input)
B55: Total vaccine cold chain volume in country | C55: Cold chain volume per dose administered, adjusted for wastage | F55: Total vaccine cold chain required in country (cold chain volume per dose * total required supply)
B56: Net storage per dose | C56: Cold chain volume per dose administered, adjusted for wastage | F56: The Zambia study looked at the net storage required per fully immunized child, considering cold boxes, vaccine carriers, and refrigerators
B58: Limitations
B60: Limitation | C60: Description
B61: Wastage | C61: • Limited data is available on the impact of MCV 5-dose vials on wastage rates • Many factors can influence wastage, and the context of each country should be taken into consideration
B62: Coverage | C62: • Limited data is available to understand the impact of 5-dose vials on coverage in different settings, such as healthcare facilities with varying catchment population sizes
B63: Total Costs | C63: • There is uncertainty around the incremental programmatic costs associated with switching to 5-dose vials, and costs will vary in different contexts
B64: Cold Chain | C64: • The impact of switching to 5-dose vials on the cold chain is uncertain and will vary for each healthcare facility
B65: Zambia Study | C65: • The Zambia study was used to inform assumptions on wastage, coverage, incremental costs, and cold chain • Please reference the Zambia study (see Inputs section, above) for a complete description of study limitations

Sheet Inputs
B1: MCV 5-Dose Vial Assessment Support Tool - Inputs
B2: For questions or support, contact Linksbridge's MCV 5-dose team: lena.stashko@linksbridge.com; sheldon.halsted@linksbridge.com; and/or maggie.archbold@linksbridge.com
B3: STEP 1: IMMUNIZATION PROGRAM
B5: Country
I6: Legend:
B7: Select country >>> | C7: Indonesia | E7: Country being analyzed | I7: REQUIRED: Select input from drop-down menu.
B8: Target population size | C8: =VLOOKUP($C$7,'Country Data'!$B$3:$E$196,4,FALSE) -> 4435250 | E8: UNPD 2022 Revision, birth cohort size in 2022, autopopulated for the country listed as the reference | I8: Autopopulated data based on selected inputs or pre-populated data. These cells can be overwritten if you want to enter your own inputs.
B9: Gavi co-financing status | C9: Preparatory transition | E9: Country's Gavi co-financing status in the year being analyzed | I9: Inputs that have been manually entered are highlighted in yellow.
B10: Country co-financing share | C10: 1 | E10: The country's percent of vaccine price per dose or "price fraction" that they are responsible for. Non-Gavi countries should enter 100% for all years, | I10: WARNING: If you manually adjust an input cell, click the RESET button if you want to return to autopopulated data.
B12: Coverage
B14: MCV1 coverage | C14: =VLOOKUP($C$7,'Country Data'!$B$3:$D$196,2,FALSE) -> 0.72 | E14: WUENIC 2022 data, MCV1 coverage in 2021, autopopulated for the country listed as the reference
B15: MCV2 coverage | C15: =VLOOKUP($C$7,'Country Data'!$B$3:$D$196,3,FALSE) -> 0.5 | E15: WUENIC 2022 data, MCV2 coverage in 2021, autopopulated for the country listed as the reference
B16: Increase in MCV1 coverage | C16: =_xlfn.IFNA(VLOOKUP($C$14,Table14[],2,FALSE),0) -> 0.049 | E16: Expected increase in MCV1 coverage by switching to 5-dose vials
B17: Increase in MCV2 coverage | C17: =_xlfn.IFNA(VLOOKUP(C$15,Table14[],3,FALSE),0) -> 0.030245 | E17: Expected increase in MCV2 coverage by switching to 5-dose vials
B19: Wastage
B21: Select wastage assumption source >>> | C21: Zambia Study | E21: Given the uncertainty of the impact of 5-dose vials on wastage, and the various factors that influence wastage, you can select wastage assumptions from the WHO/UNICEF fact sheet, from the Zambia study results, or enter your own wastage assumptions.
B22: 10-dose vial wastage | C22: =VLOOKUP(C$21,Table5[],2,FALSE) -> 0.3053 | E22: =VLOOKUP(C$21,'Wastage Data'!$A$3:$D$5,4,FALSE) -> Wastage results from the Zambia study
B23: 5-dose vial wastage | C23: =VLOOKUP(C$21,Table5[],3,FALSE) -> 0.1618 | E23: =VLOOKUP(C$21,'Wastage Data'!$A$3:$D$5,4,FALSE) -> Wastage results from the Zambia study
B25: Program Costs
B27: Select program costs source >>> | C27: Zambia Study | E27: The additional, non-vaccine annual costs per dose administered associated with switching from 10-dose to 5-dose vials. Given the uncertainty of the impact of 5-dose vials on programmatic costs, you can select cost assumptions from the Zambia study results or enter your own assumptions.
B28: Incremental non-vaccine costs per 5-dose vial administered | C28: =VLOOKUP(C27,Table55[],2,FALSE) -> 0.11 | E28: =VLOOKUP(C27,'Program Costs'!A3:C4,3,FALSE) -> The Zambia study found that the incremental economic and financial cost per 5-dose vial administered was $0.11 (excluding the cost of the vaccine). Additional costs take into account cold chain, transport, outreach, human resources, and wastage disposal costs. Data came from the DPCP Zambia report.
B30: STEP 2: MEASLES-CONTAINING VACCINE OPTIONS
B32: Vaccines Costs & Cold Chain
C34: CURRENT 10-DOSE VIAL PRODUCT | E34: OPTION 1 (5-DOSE VIAL) | G34: OPTION 2 (5-DOSE VIAL) | I34: COMMENTS AND SOURCES
B35: Select vaccine and presentation >>> | C35: Measles, SII 10-dose vial | E35: Measles, SII 5-dose vial | G35: Measles, SII 5-dose vial
B36: Price per dose | C36: =VLOOKUP(C$35,Table2[],2,FALSE) -> 0.423 | E36: =VLOOKUP(E$35,Table2[],2,FALSE) -> 0.522 | G36: =VLOOKUP(G$35,Table2[],2,FALSE) -> 0.522 | I36: From UNICEF vaccines pricing data, or can manually enter
B37: Cold chain volume per dose (cm3) | C37: =VLOOKUP(C$35,Table2[],3,FALSE) -> 5.25 | E37: =VLOOKUP(E$35,Table2[],3,FALSE) -> 8.64 | G37: =VLOOKUP(G$35,Table2[],3,FALSE) -> 8.64 | I37: Cold chain volume required per dose (in cm3) from the Gavi Detailed Product Profiles (includes vial and ampoule)

Sheet Results
B1: MCV 5-Dose Vial Decision Support Tool - Results (annual)
B2: For questions or support, contact Linksbridge's MCV 5-dose team: lena.stashko@linksbridge.com; sheldon.halsted@linksbridge.com; and/or maggie.archbold@linksbridge.com
B3: =_xlfn.CONCAT("OUTPUTS: ",UPPER(Inputs!C7)) -> OUTPUTS: INDONESIA
B5: VACCINE DELIVERY
D7: CURRENT 10-DOSE VIAL PRODUCT | F7: OPTION 1 (5-DOSE VIAL) | I7: OPTION 2 (5-DOSE VIAL) | L7: Description | O7: Interpretation
B8: Vaccine and presentation | D8: =Inputs!$C$35 -> Measles, SII 10-dose vial | F8: =Inputs!$E$35 -> Measles, SII 5-dose vial | I8: =Inputs!$G$35 -> Measles, SII 5-dose vial
B9: Output and difference | D9: Output | F9: Output | G9: Difference (5d minus 10d) | I9: Output | J9: Difference (5d minus 10d)
B10: Total required supply | D10: =(Inputs!$C$8*Inputs!$C$14*(1/(1-Inputs!$C$22)))+(Inputs!$C$8*Inputs!$C$15*(1/(1-Inputs!$C$22))) -> 7788980.855 | F10: =(Inputs!$C$8*(Inputs!$C$14+Inputs!$C$16)*(1/(1-Inputs!$C$23)))+(Inputs!$C$8*(Inputs!$C$15+Inputs!$C$17)*(1/(1-Inputs!$C$23))) -> 6874822.699 | G10: =F10-D10 -> -914158.1561 | I10: =(Inputs!$C$8*(Inputs!$C$14+Inputs!$C$16)*(1/(1-Inputs!$C$23)))+(Inputs!$C$8*(Inputs!$C$15+Inputs!$C$17)*(1/(1-Inputs!$C$23))) -> 6874822.699 | J10: =I10-D10 -> -914158.1561 | L10: The demand for MCV considering target population, number of doses, coverage, and wastage rates | O10: =(_xlfn.CONCAT("The total required supply will reduce by ",TEXT(ABS(D10-F10),"###,###,###")," doses annually, or by ",TEXT(ABS(((D10-F10)/D10)),"0%"))) -> The total required supply will reduce by 914,158 doses annually, or by 12%
B11: Number of doses administered | D11: =(Inputs!$C$8*Inputs!$C$14)+(Inputs!$C$8*Inputs!$C$15) -> 5411005 | F11: =(Inputs!$C$8*(Inputs!$C$14+Inputs!$C$16))+(Inputs!$C$8*(Inputs!$C$15+Inputs!$C$17)) -> 5762476.386 | G11: =F11-D11 -> 351471.3863 | I11: =(Inputs!$C$8*(Inputs!$C$14+Inputs!$C$16))+(Inputs!$C$8*(Inputs!$C$15+Inputs!$C$17)) -> 5762476.386 | J11: =I11-D11 -> 351471.3863 | L11: The number of doses administered to children, including both MCV1 and MCV2 doses | O11: =IF(F11-D11=0,"Since baseline MCV1 and MCV2 coverage is greater than 95%, this analysis assumes no increase of coverage or the number of children vaccinated by switching to 5-dose vials",(_xlfn.CONCAT("An additional ",TEXT(ABS(F11-D11),"###,###,###")," doses will be administered each year (including MCV1 and MCV2), which is an increase of ",TEXT(ABS(((D11-F11)/D11)),"0%")))) -> An additional 351,471 doses will be administered each year (including MCV1 and MCV2), which is an increase of 6%
B12: Number of doses wasted | D12: =D10-D11 -> 2377975.855 | F12: =F10-F11 -> 1112346.313 | G12: =F12-D12 -> -1265629.542 | I12: =I10-I11 -> 1112346.313 | J12: =I12-D12 -> -1265629.542 | L12: The number of doses wasted out of the total required supply, based on wastage rates | O12: =(_xlfn.CONCAT("The number of doses wasted will ",IF(F12<D12,"decrease ","increase "),"by approximately ",TEXT(ABS(F12-D12),"###,###,###")," doses, or by ",TEXT(ABS(((D12-F12)/D12)),"0%"))) -> The number of doses wasted will decrease by approximately 1,265,630 doses, or by 53%
B15: TOTAL SYSTEMS COSTS (PER VACCINATED CHILD)
D17: CURRENT 10-DOSE VIAL PRODUCT | F17: OPTION 1 (5-DOSE VIAL) | I17: OPTION 2 (5-DOSE VIAL) | L17: Description | O17: Interpretation (All values are comparing Option 1 with 10-dose vial product)
B18: Vaccine and presentation | D18: =Inputs!$C$35 -> Measles, SII 10-dose vial | F18: =Inputs!$E$35 -> Measles, SII 5-dose vial | I18: =Inputs!$G$35 -> Measles, SII 5-dose vial
B19: Output and difference | D19: Output | F19: Output | G19: Difference (5d minus 10d) | I19: Output | J19: Difference (5d minus 10d)
B20: Vaccine procurement price | D20: =Inputs!C36 -> 0.423 | F20: =Inputs!E36 -> 0.522 | G20: =F20-D20 -> 0.099 | I20: =Inputs!G36 -> 0.522 | J20: =I20-D20 -> 0.099 | L20: The vaccine price per dose | O20: =_xlfn.CONCAT("Without adjusting for wastage, 5-dose vials are ",TEXT(ABS(F20-D20),"$0.00")," more expensive than 10-dose vials") -> Without adjusting for wastage, 5-dose vials are $0.10 more expensive than 10-dose vials
B21: Vaccine procurement cost per vaccinated child | D21: =Inputs!C$36*Results!D$10/D$11 -> 0.6088959263 | F21: =Inputs!E$36*Results!F$10/F$11 -> 0.6227630637 | G21: =F21-D21 -> 0.01386713741 | I21: =Inputs!G$36*Results!I$10/I$11 -> 0.6227630637 | J21: =I21-D21 -> 0.01386713741 | L21: The vaccine cost per dose administered, adjusted for wastage and coverage | O21: =_xlfn.CONCAT("After adjusting for wastage and coverage, the vaccine procurement cost per vaccinated child is ",IF(F21>D21,_xlfn.CONCAT(TEXT(ABS(F21-D21),"$0.00")," more expensive than 10-dose vials"),IF(F21<D21,_xlfn.CONCAT(TEXT(ABS(F21-D21),"$0.00")," cheaper than 10-dose vials")," the same as 10-dose vials"))) -> After adjusting for wastage and coverage, the vaccine procurement cost per vaccinated child is $0.01 more expensive than 10-dose vials
B22: Total costs per vaccinated child | D22: =Inputs!C$36*Results!D$10/D$11 -> 0.6088959263 | F22: =(Inputs!E$36*Results!F$10/F$11)+Inputs!$C$28 -> 0.7327630637 | G22: =F22-D22 -> 0.1238671374 | I22: =(Inputs!G$36*Results!I$10/I$11)+Inputs!$C$28 -> 0.7327630637 | J22: 0.1238671374 | L22: The wastage-adjusted vaccine procurement cost per vaccinated child. For 5-dose vials, this also includes the incremental non-vaccine costs per vaccinated child associated with switching from 10- to 5-dose vials. | O22: =_xlfn.CONCAT(IF($F$22>$D$22,"The 5-dose vials have higher total costs per vaccinated child than 10-dose vials, mostly attributable to incremental non-vaccine costs","The 5-dose vials have lower total costs per vaccinated child than 10-dose vials, even after accounting for the incremental non-vaccine costs associated with switching to 5-dose vials")) -> The 5-dose vials have higher total costs per vaccinated child than 10-dose vials, mostly attributable to incremental non-vaccine costs
B24: TOTAL SYSTEMS COSTS (FOR COUNTRY & GAVI)
D26: CURRENT 10-DOSE VIAL PRODUCT | F26: OPTION 1 (5-DOSE VIAL) | I26: OPTION 2 (5-DOSE VIAL) | L26: Description | O26: Interpretation (All values are comparing Option 1 with 10-dose vial product)
B27: Vaccine and presentation | D27: =Inputs!$C$35 -> Measles, SII 10-dose vial | F27: =Inputs!$E$35 -> Measles, SII 5-dose vial | I27: =Inputs!$G$35 -> Measles, SII 5-dose vial
B28: Output and difference | D28: Output | F28: Output | G28: Difference (5d minus 10d) | I28: Output | J28: Difference (5d minus 10d)
B29: Total vaccine procurement costs | C29: For country | D29: =Inputs!C$36*Results!D$10*Inputs!$C$10 -> 3294738.902 | F29: =Inputs!E$36*Results!F$10*Inputs!$C$10 -> 3588657.449 | G29: =F29-D29 -> 293918.5472 | I29: =Inputs!G$36*Results!I$10*Inputs!$C$10 -> 3588657.449 | J29: 293918.5472 | L29: The total vaccine procurement costs to country (vaccine price * total required supply * country co-financing share) | O29: =(_xlfn.CONCAT("The total vaccine procurement costs for ",Inputs!C7," will be approximately ",IF(Results!F29>Results!D29,_xlfn.CONCAT(TEXT(ABS(Results!F29-Results!D29),"$###,###,###")," more"),_xlfn.CONCAT(TEXT(ABS(Results!F29-Results!D29),"$###,###,###")," less"))," expensive for 5-dose vials than for 10-dose vials")) -> The total vaccine procurement costs for Indonesia will be approximately $293,919 more expensive for 5-dose vials than for 10-dose vials
C30: For Gavi | D30: =Inputs!C$36*Results!D$10*(1-Inputs!$C$10) -> 0 | F30: =Inputs!E$36*Results!F$10*(1-Inputs!$C$10) -> 0 | G30: =F30-D30 -> 0 | I30: =Inputs!G$36*Results!I$10*(1-Inputs!$C$10) -> 0 | J30: 0 | L30: The total vaccine procurement costs to Gavi (vaccine price * total required supply * (1 - country-cofinancing share)) | O30: =IF(F30=0,"Gavi does not co-finance this vaccine",(_xlfn.CONCAT("The total vaccine procurement costs for Gavi will be approximately ",IF(Results!F30>Results!D30,_xlfn.CONCAT(TEXT(ABS(Results!F30-Results!D30),"$###,###,###")," more"),_xlfn.CONCAT(TEXT(ABS(Results!F30-Results!D30),"$###,###,###")," less"))," expensive for 5-dose vials than for 10-dose vials"))) -> Gavi does not co-finance this vaccine
C31: Total | D31: =SUM(D29:D30) -> 3294738.902 | F31: =SUM(F29:F30) -> 3588657.449 | G31: =SUM(G29:G30) -> 293918.5472 | I31: =SUM(I29:I30) -> 3588657.449 | J31: =SUM(J29:J30) -> 293918.5472 | L31: The sum of the vaccine procurement cost for the country and Gavi | O31: =(_xlfn.CONCAT("The total vaccine procurement costs for ",Inputs!C7," and Gavi will be approximately ",IF(Results!F31>Results!D31,_xlfn.CONCAT(TEXT(ABS(Results!F31-Results!D31),"$###,###,###")," more"),_xlfn.CONCAT(TEXT(ABS(Results!F31-Results!D31),"$###,###,###")," less"))," expensive for 5-dose vials than for 10-dose vials")) -> The total vaccine procurement costs for Indonesia and Gavi will be approximately $293,919 more expensive for 5-dose vials than for 10-dose vials
B32: Total incremental non-vaccine costs | C32: For country | D32: =D11*0 -> 0 | F32: =(Inputs!$C$28*Results!F11) -> 633872.4025 | G32: =F32-D32 -> 633872.4025 | I32: =(Inputs!$C$28*Results!I11) -> 633872.4025 | J32: =I32-D32 -> 633872.4025 | L32: Incremental non-vaccine costs per 5-dose vial administered * number of doses administered | O32: =_xlfn.CONCAT("An additional ",(TEXT(ABS(G32),"$###,###,###"))," is expected for non-vaccine costs associated with switching to 5-dose vials for things such as cold chain, transport, outreach, human resources, and wastage disposal costs") -> An additional $633,872 is expected for non-vaccine costs associated with switching to 5-dose vials for things such as cold chain, transport, outreach, human resources, and wastage disposal costs
B33: Total vaccination program costs | C33: For country | D33: =SUM(D29,D32) -> 3294738.902 | F33: =SUM(F29,F32) -> 4222529.851 | G33: =F33-D33 -> 927790.9496 | I33: =SUM(I29,I32) -> 4222529.851 | J33: =I33-D33 -> 927790.9496 | L33: The total vaccine procurement costs to country. For 5-dose vials, this also includes the incremental non-vaccine costs associated with switching from 10- to 5-dose vials. | O33: =(_xlfn.CONCAT("The total costs for ",Inputs!C7,", also taking into account incremental non-vaccine costs for 5-dose vials, will be approximately ",IF(Results!F33>Results!D33,_xlfn.CONCAT(TEXT(ABS(Results!F33-Results!D33),"$###,###,###")," more"),_xlfn.CONCAT(TEXT(ABS(Results!F33-Results!D33),"$###,###,###")," less"))," expensive for 5-dose vials than for 10-dose vials")) -> The total costs for Indonesia, also taking into account incremental non-vaccine costs for 5-dose vials, will be approximately $927,791 more expensive for 5-dose vials than for 10-dose vials
C34: Total (including Gavi procurement costs) | D34: =SUM(D29,D30,D32) -> 3294738.902 | F34: =SUM(F29,F30,F32) -> 4222529.851 | G34: =F34-D34 -> 927790.9496 | I34: =SUM(I29,I30,I32) -> 4222529.851 | J34: =I34-D34 -> 927790.9496 | L34: The total vaccine procurement costs to country and Gavi and the incremental programmatic costs for 5-dose vials. | O34: =(_xlfn.CONCAT("The total costs for ",Inputs!C7," and Gavi, also taking into account incremental non-vaccine costs for 5-dose vials, will be approximately ",TEXT(F34,"$###,###,###"),", which is ",IF(Results!F34>Results!D34,_xlfn.CONCAT(TEXT(ABS(Results!F34-Results!D34),"$###,###,###")," more"),_xlfn.CONCAT(TEXT(ABS(Results!F34-Results!D34),"$###,###,###")," less"))," expensive than 10-dose vials")) -> The total costs for Indonesia and Gavi, also taking into account incremental non-vaccine costs for 5-dose vials, will be approximately $4,222,530, which is $927,791 more expensive than 10-dose vials
B37: COLD CHAIN REQUIREMENTS
D39: CURRENT 10-DOSE VIAL PRODUCT | F39: OPTION 1 (5-DOSE VIAL) | I39: OPTION 2 (5-DOSE VIAL) | L39: Description | O39: Interpretation (All values are comparing Option 1 with 10-dose vial product
B40: Vaccine and presentation | D40: =Inputs!$C$35 -> Measles, SII 10-dose vial | F40: =Inputs!$E$35 -> Measles, SII 5-dose vial | I40: =Inputs!$G$35 -> Measles, SII 5-dose vial
B41: Output and difference | D41: Output | F41: Output | G41: Difference (5d minus 10d) | I41: Output | J41: Difference (5d minus 10d)
B42: Cold chain volume per dose (cm3) | D42: =Inputs!C37 -> 5.25 | F42: =Inputs!E37 -> 8.64 | G42: =F42-D42 -> 3.39 | I42: =Inputs!G37 -> 8.64 | J42: =I42-D42 -> 3.39 | L42: Cold chain volume required per dose (in cm3) from the Gavi Detailed Product Profiles (includes vial and ampoule) | O42: =IF(F42>D42,_xlfn.CONCAT("5-dose vials take up ",TEXT(ABS(F42-D42),"##.##")," cm3 more cold chain volume per dose than 10-dose vials"),_xlfn.CONCAT("5-dose vials take up ",TEXT(ABS(F42-D42),"##.##")," cm3 less cold chain volume per dose than 10-dose vials")) -> 5-dose vials take up 3.39 cm3 more cold chain volume per dose than 10-dose vials
B43: Cold chain volume per vaccinated child (cm3) | D43: =(D42*D10)/D11 -> 7.557218943 | F43: =(F42*F10)/F11 -> 10.30780243 | G43: 2.75058349 | I43: =(I42*I10)/I11 -> 10.30780243 | J43: =I43-D43 -> 2.75058349 | L43: Cold chain volume per dose administered, adjusted for wastage | O43: =_xlfn.CONCAT("After adjusting for wastage and coverage, ",IF(F43>D43,_xlfn.CONCAT("5-dose vials take up ",TEXT(ABS(F43-D43),"##.##")," cm3 more cold chain volume per dose than 10-dose vials"),_xlfn.CONCAT("5-dose vials take up ",TEXT(ABS(F43-D43),"##.##")," cm3 less cold chain volume per dose than 10-dose vials"))) -> After adjusting for wastage and coverage, 5-dose vials take up 2.75 cm3 more cold chain volume per dose than 10-dose vials
B44: Total vaccine cold chain volume in country (cm3) | D44: =D42*D10 -> 40892149.49 | F44: =F42*F10 -> 59398468.12 | G44: 18506318.63 | I44: =I42*I10 -> 59398468.12 | J44: =I44-D44 -> 18506318.63 | L44: Total vaccine cold chain required in country (cold chain volume per dose * total required supply) | O44: =(_xlfn.CONCAT("The total cold chain volume for ",Inputs!C7," will be approximately ",IF(Results!F44>Results!D44,_xlfn.CONCAT(TEXT(ABS(Results!F44-Results!D44),"###,###,###")," cm3 more"),_xlfn.CONCAT(TEXT(ABS(Results!F44-Results!D44),"###,###,###")," cm3 less"))," for 5-dose vials than for 10-dose vials")) -> The total cold chain volume for Indonesia will be approximately 18,506,319 cm3 more for 5-dose vials than for 10-dose vials | AB44: d
B45: Net storage per dose (cm3) | D45: 88.5 | F45: 93.7 | G45: 5.2 | I45: 93.7 | J45: 5.2 | L45: The Zambia study looked at the net storage required per fully immunized child, considering cold boxes, vaccine carriers, and refrigerators | O45: The Zambia study found that the difference in total net storage requirement per fully immunized child, including the vaccine, was marginal
B48: <<< GO TO IMPACT >>>

Sheet Impact
B1: MCV 5-Dose Vial Assessment Support Tool - Results (annual)
B2: For questions or support, contact Linksbridge's MCV 5-dose team: lena.stashko@linksbridge.com; sheldon.halsted@linksbridge.com; and/or maggie.archbold@linksbridge.com
B3: =_xlfn.CONCAT("Impact: ",UPPER(Inputs!$C$7)) -> Impact: INDONESIA
B5: VACCINE DELIVERY
B6: =_xlfn.CONCAT("KEY TAKEAWAYS OF OPTION 1: Switching to 5-dose vials results in lower total required supply",IF(Results!F11=Results!D11,"",", more children vaccinated,")," and fewer doses wasted than with 10-dose vials") -> KEY TAKEAWAYS OF OPTION 1: Switching to 5-dose vials results in lower total required supply, more children vaccinated, and fewer doses wasted than with 10-dose vials
B7: =(_xlfn.CONCAT("The total required supply will reduce by ",TEXT(ABS(Results!D10-Results!F10),"###,###,###")," doses annually, or by ",TEXT(ABS(((Results!D10-Results!F10)/Results!D10)),"0%"))) -> The total required supply will reduce by 914,158 doses annually, or by 12%
B8: =IF(Results!D11-Results!F11=0,"Since baseline MCV1 and MCV2 coverage is greater than 95%, this analysis assumes no increase of coverage or the number of children vaccinated by switching to 5-dose vials",(_xlfn.CONCAT("An additional ",TEXT(ABS(Results!D11-Results!F11),"###,###,###")," doses will be administered each year (including MCV1 and MCV2), which is an increase of ",TEXT(ABS(((Results!D11-Results!F11)/Results!D11)),"0%")))) -> An additional 351,471 doses will be administered each year (including MCV1 and MCV2), which is an increase of 6%
B9: =(_xlfn.CONCAT("The number of doses wasted will ",IF(Results!F12<Results!D12,"decrease ","increase "),"by approximately ",TEXT(ABS(Results!F12-Results!D12),"###,###,###")," doses, or by ",TEXT(ABS(((Results!D12-Results!F12)/Results!D12)),"0%"))) -> The number of doses wasted will decrease by approximately 1,265,630 doses, or by 53%
B12: TOTAL SYSTEMS COSTS
B13: =_xlfn.CONCAT("KEY TAKEAWAYS OF OPTION 1: ",IF(Results!F21>Results!D21,"After adjusting for wastage and coverage, the vaccine procurement cost is marginally higher for 5-dose vials","After adjusting for wastage and coverage, the vaccine procurement cost is cheaper for 5-dose vials than for 10-dose vials"),". In addition to the vaccine procurement cost, ",Inputs!C7," should also take into account the incremental non-vaccine costs associated with switching to 5-dose vials. Costs associated with switching may be offset by a Gavi switch grant, if eligible.") -> KEY TAKEAWAYS OF OPTION 1: After adjusting for wastage and coverage, the vaccine procurement cost is marginally higher for 5-dose vials. In addition to the vaccine procurement cost, Indonesia should also take into account the incremental non-vaccine costs associated with switching to 5-dose vials. Costs associated with switching may be offset by a Gavi switch grant, if eligible.
B14: =(_xlfn.CONCAT("The total vaccine procurement costs for ",Inputs!C7," will be approximately ",TEXT(Results!F29,"$###,###,###"),", which is ",IF(Results!F29>Results!D29,_xlfn.CONCAT(TEXT(ABS(Results!F29-Results!D29),"$###,###,###")," more"),_xlfn.CONCAT(TEXT(ABS(Results!F29-Results!D29),"$###,###,###")," less"))," expensive for 5-dose vials than for 10-dose vials, taking into account potential co-financing")) -> The total vaccine procurement costs for Indonesia will be approximately $3,588,657, which is $293,919 more expensive for 5-dose vials than for 10-dose vials, taking into account potential co-financing
B15: =(_xlfn.CONCAT("The total costs for ",Inputs!C7,", also taking into account incremental non-vaccine costs for 5-dose vials, will be approximately ",TEXT(Results!F33,"$###,###,###"),", which is ",IF(Results!F33>Results!D33,_xlfn.CONCAT(TEXT(ABS(Results!F33-Results!D33),"$###,###,###")," more"),_xlfn.CONCAT(TEXT(ABS(Results!F33-Results!D33),"$###,###,###")," less"))," expensive for 5-dose vials than for 10-dose vials")) -> The total costs for Indonesia, also taking into account incremental non-vaccine costs for 5-dose vials, will be approximately $4,222,530, which is $927,791 more expensive for 5-dose vials than for 10-dose vials
B18: COLD CHAIN REQUIREMENTS
B19: KEY TAKEAWAYS OF OPTION 1: While 5-dose vials take up more cold chain space per dose, this is offset by the lower total required supply, and all health facilities in the Zambia study had sufficient cold chain space. The Zambia study found that the difference in total net storage requirement per fully immunized child, including the vaccine, was marginal.
B20: =(_xlfn.CONCAT("The total cold chain volume for ",Inputs!C7," will be approximately ",IF(Results!F44>Results!D44,_xlfn.CONCAT(TEXT(ABS(Results!F44-Results!D44),"###,###,###")," cm3 more"),_xlfn.CONCAT(TEXT(ABS(Results!F44-Results!D44),"###,###,###")," cm3 less"))," for 5-dose vials than for 10-dose vials")) -> The total cold chain volume for Indonesia will be approximately 18,506,319 cm3 more for 5-dose vials than for 10-dose vials
B23: ADDITIONAL CONSIDERATIONS:
B25: EQUITY
B26: • MCV 5-dose is a delivery-based innovation that can help reach un-/under-immunized children, especially in rural and remote areas where session sizes tend to be small • Minimizing missed opportunities for vaccination will help drive progress towards achieving equity goals in immunization
B28: HEALTHCARE WORKER BEHAVIOR
B29: • Despite open vial policies that promote ‘one vial one child,’ healthcare worker reluctance to open vials remains a challenge in routine immunization • MCV 5-dose will reduce healthcare worker hesitancy to open a vial due to fear of wastage and/or stockouts • Use of 5-dose will improve timely coverage and reduce missed opportunities for vaccination, while also reducing wastage
B31: SAFETY
B32: • Increasing the doses per container increases the opportunity for user error, which may raise the likelihood of non-sterile injections and injections with expired vaccine. MCV 5-dose could help reduce this risk.
B34: MARKET HEALTH
B35: • MCV 5-dose is an intervention that would improve routine immunization coverage, thus hopefully reducing the country's reliance on campaigns and minimizing the unpredictability of demand year-over-year
B37: ONE-TIME SWITCH COSTS AND GAVI GRANT
B38: • There may be additional one-time switch costs associated with switching to 5-dose vials • Gavi countries may be eligible for a Gavi switch grant to offset the costs associated with switching to 5-dose vials
B39: One-time switch costs | C39: 0 | D39: Switching vaccine presentations might have additional financial implications in the first year. Here you can enter an optional lump sum or budget for switching to 5-dose vials in the first year.
B40: Gavi switch grant | C40: =IF(Inputs!$C$8*0.25>30000,Inputs!$C$8*0.25,30000) -> 1108812.5 | D40: Gavi switch grants (SGs) are one-time subsidies provided by Gavi to offset a share of the costs related to switching to a new vaccine. Calculated as $0.25 per infant in the birth cohort or a lump sum of $30,000, whichever is higher.
B41: Additional costs / savings | C41: =C40-C39 -> 1108812.5 | D41: Calculated as Gavi switch grant minus one-time switch costs

Sheet Coverage Data (hidden)
A1: Coverage Data
A2: Baseline coverage | B2: MCV1 coverage increase | C2: MCV2 coverage increase
A3: 0.01 | B3: 0.049 | C3: 0.035
A4: 0.02 | B4: 0.049 | C4: 0.035
A5: 0.03 | B5: 0.049 | C5: 0.035
A6: 0.04 | B6: 0.049 | C6: 0.035
A7: 0.05 | B7: 0.049 | C7: 0.035
A8: 0.06 | B8: 0.049 | C8: 0.035
A9: 0.07 | B9: 0.049 | C9: 0.035
A10: 0.08 | B10: 0.049 | C10: 0.035
A11: 0.09 | B11: 0.049 | C11: 0.035
A12: 0.1 | B12: 0.049 | C12: 0.035
A13: 0.11 | B13: 0.049 | C13: 0.035
A14: 0.12 | B14: 0.049 | C14: 0.035
A15: 0.13 | B15: 0.049 | C15: 0.035
A16: 0.14 | B16: 0.049 | C16: 0.035
A17: 0.15 | B17: 0.049 | C17: 0.035
A18: 0.16 | B18: 0.049 | C18: 0.035
A19: 0.17 | B19: 0.049 | C19: 0.035
A20: 0.18 | B20: 0.049 | C20: 0.035
A21: 0.19 | B21: 0.049 | C21: 0.035
A22: 0.2 | B22: 0.049 | C22: 0.035
A23: 0.21 | B23: 0.049 | C23: 0.035
A24: 0.22 | B24: 0.049 | C24: 0.035
A25: 0.23 | B25: 0.049 | C25: 0.035
A26: 0.24 | B26: 0.049 | C26: 0.035
A27: 0.25 | B27: 0.049 | C27: 0.035
A28: 0.26 | B28: 0.049 | C28: 0.035
A29: 0.27 | B29: 0.049 | C29: 0.035
A30: 0.28 | B30: 0.049 | C30: 0.035
A31: 0.29 | B31: 0.049 | C31: 0.035
A32: 0.3 | B32: 0.049 | C32: 0.035
A33: 0.31 | B33: 0.049 | C33: 0.035
A34: 0.32 | B34: 0.049 | C34: 0.035
A35: 0.33 | B35: 0.049 | C35: 0.035
A36: 0.34 | B36: 0.049 | C36: 0.035
A37: 0.35 | B37: 0.049 | C37: 0.035
A38: 0.36 | B38: 0.049 | C38: 0.035
A39: 0.37 | B39: 0.049 | C39: 0.035
A40: 0.38 | B40: 0.049 | C40: 0.035
A41: 0.39 | B41: 0.049 | C41: 0.035
A42: 0.4 | B42: 0.049 | C42: 0.035
A43: 0.41 | B43: 0.049 | C43: 0.035
A44: 0.42 | B44: 0.049 | C44: 0.035
A45: 0.43 | B45: 0.049 | C45: 0.035
A46: 0.44 | B46: 0.049 | C46: 0.0342836
A47: 0.45 | B47: 0.049 | C47: 0.0336105
A48: 0.46 | B48: 0.049 | C48: 0.0329374
A49: 0.47 | B49: 0.049 | C49: 0.0322643
A50: 0.48 | B50: 0.049 | C50: 0.0315912
A51: 0.49 | B51: 0.049 | C51: 0.0309181
A52: 0.5 | B52: 0.049 | C52: 0.030245
A53: 0.51 | B53: 0.049 | C53: 0.0295719
A54: 0.52 | B54: 0.049 | C54: 0.0288988
A55: 0.53 | B55: 0.049 | C55: 0.0282257
A56: 0.54 | B56: 0.049 | C56: 0.0275526
A57: 0.55 | B57: 0.049 | C57: 0.0268795
A58: 0.56 | B58: 0.049 | C58: 0.0262064
A59: 0.57 | B59: 0.049 | C59: 0.0255333
A60: 0.58 | B60: 0.049 | C60: 0.0248602
A61: 0.59 | B61: 0.049 | C61: 0.0241871
A62: 0.6 | B62: 0.049 | C62: 0.023514
A63: 0.61 | B63: 0.049 | C63: 0.0228409
A64: 0.62 | B64: 0.049 | C64: 0.0221678
A65: 0.63 | B65: 0.049 | C65: 0.0214947
A66: 0.64 | B66: 0.049 | C66: 0.0208216
A67: 0.65 | B67: 0.049 | C67: 0.0201485
A68: 0.66 | B68: 0.049 | C68: 0.0194754
A69: 0.67 | B69: 0.049 | C69: 0.0188023
A70: 0.68 | B70: 0.049 | C70: 0.0181292
A71: 0.69 | B71: 0.049 | C71: 0.0174561
A72: 0.7 | B72: 0.049 | C72: 0.016783
A73: 0.71 | B73: 0.049 | C73: 0.0161099
A74: 0.72 | B74: 0.049 | C74: 0.0154368
A75: 0.73 | B75: 0.049 | C75: 0.0147637
A76: 0.74 | B76: 0.049 | C76: 0.0140906
A77: 0.75 | B77: 0.049 | C77: 0.0134175
A78: 0.76 | B78: 0.049 | C78: 0.0127444
A79: 0.77 | B79: 0.049 | C79: 0.0120713
A80: 0.78 | B80: 0.049 | C80: 0.0113982
A81: 0.79 | B81: 0.049 | C81: 0.0107251
A82: 0.8 | B82: 0.049 | C82: 0.010052
A83: 0.81 | B83: 0.049 | C83: 0.0093789
A84: 0.82 | B84: 0.049 | C84: 0.0087058
A85: 0.83 | B85: 0.0456 | C85: 0.0080327
A86: 0.84 | B86: 0.0418 | C86: 0.0073596
A87: 0.85 | B87: 0.038 | C87: 0.0066865
A88: 0.86 | B88: 0.0342 | C88: 0.0060134
A89: 0.87 | B89: 0.0304 | C89: 0.0053403
A90: 0.88 | B90: 0.0266 | C90: 0.0046672
A91: 0.89 | B91: 0.0228 | C91: 0.0039941
A92: 0.9 | B92: 0.019 | C92: 0.003321
A93: 0.91 | B93: 0.0152 | C93: 0.0026479
A94: 0.92 | B94: 0.0114 | C94: 0.0019748
A95: 0.93 | B95: 0.0076 | C95: 0.0013017
A96: 0.94 | B96: 0.0038 | C96: 0.0006286
A97: 0.95 | B97: 0 | C97: -4.45e-05
A98: 0.96 | B98: 0 | C98: 0
A99: 0.97 | B99: 0 | C99: 0
A100: 0.98 | B100: 0 | C100: 0
A101: 0.99 | B101: 0 | C101: 0
A102: 1 | B102: 0 | C102: 0

Sheet Country Data (hidden)
A1: Country Data (coverage & birth cohort size)
A2: ISO_code | B2: Country | C2: MCV1 Coverage (2021) | D2: MCV2 Coverage (2021) | E2: Birth Cohort (2022)
A3: AFG | B3: Afghanistan | C3: 0.63 | D3: 0.44 | E3: 1368682
A4: ALB | B4: Albania | C4: 0.87 | D4: 0.92 | E4: 28218.5
A5: DZA | B5: Algeria | C5: 0.8 | D5: 0.77 | E5: 946304.5
A6: AND | B6: Andorra | C6: 0.99 | D6: 0.97 | E6: 335.5
A7: AGO | B7: Angola | C7: 0.36 | D7: 0.32 | E7: 1275483.5
A8: ATG | B8: Antigua | C8: 0.85 | D8: 0.76 | E8: 1123.5
A9: ARG | B9: Argentina | C9: 0.81 | D9: 0.79 | E9: 627545
A10: ARM | B10: Armenia | C10: 0.94 | D10: 0.94 | E10: 34060
A11: AUS | B11: Australia | C11: 0.93 | D11: 0.94 | E11: 298603
A12: AUT | B12: Austria | C12: 0.95 | D12: 0.88 | E12: 84112.5
A13: AZE | B13: Azerbaijan | C13: 0.93 | D13: 0.9 | E13: 127570.5
A14: BHS | B14: Bahamas | C14: 0.82 | D14: 0.82 | E14: 4631
A15: BHR | B15: Bahrain | C15: 0.99 | D15: 0.99 | E15: 17818
A16: BGD | B16: Bangladesh | C16: 0.97 | D16: 0.93 | E16: 2957644
A17: BRB | B17: Barbados | C17: 0.77 | D17: 0.7 | E17: 3018
A18: BLR | B18: Belarus | C18: 0.98 | D18: 0.98 | E18: 88439
A19: BEL | B19: Belgium | C19: 0.96 | D19: 0.85 | E19: 116052
A20: BLZ | B20: Belize | C20: 0.79 | D20: 0.77 | E20: 7064.5
A21: BEN | B21: Benin | C21: 0.68 | D21: 0 | E21: 451776
A22: BTN | B22: Bhutan | C22: 0.97 | D22: 0.91 | E22: 9542.5
A23: BOL | B23: Bolivia | C23: 0.75 | D23: 0.56 | E23: 257302.5
A24: BIH | B24: Bosnia | C24: 0.68 | D24: 0.76 | E24: 28459
A25: BWA | B25: Botswana | C25: 0.97 | D25: 0.7 | E25: 59558.5
A26: BRA | B26: Brazil | C26: 0.73 | D26: 0.46 | E26: 2743222.5
A27: BRN | B27: Brunei | C27: 0.99 | D27: 0.99 | E27: 6148.5
A28: BGR | B28: Bulgaria | C28: 0.89 | D28: 0.86 | E28: 58299
A29: BFA | B29: Burkina Faso | C29: 0.88 | D29: 0.71 | E29: 749609.5
A30: BDI | B30: Burundi | C30: 0.9 | D30: 0.85 | E30: 422264.5
A31: CPV | B31: Cabo Verde | C31: 0.95 | D31: 0.86 | E31: 9869
A32: KHM | B32: Cambodia | C32: 0.84 | D32: 0.71 | E32: 316916
A33: CMR | B33: Cameroon | C33: 0.62 | D33: 0.35 | E33: 909148.5
A34: CAN | B34: Canada | C34: 0.9 | D34: 0.83 | E34: 373863.5
A35: CAF | B35: CAR | C35: 0.41 | D35: 0 | E35: 217886.5
A36: TCD | B36: Chad | C36: 0.55 | D36: 0 | E36: 699185
A37: CHL | B37: Chile | C37: 0.92 | D37: 0.58 | E37: 229215.5
A38: CHN | B38: China | C38: 0.99 | D38: 0.99 | E38: 11501936
A39: COL | B39: Colombia | C39: 0.86 | D39: 0.86 | E39: 728292.5
A40: COM | B40: Comoros | C40: 0.82 | D40: 0.19 | E40: 23262.5
A41: COG | B41: Congo | C41: 0.68 | D41: 0.31 | E41: 173538
A42: COK | B42: Cook Islands | C42: 0.99 | D42: 0.98 | E42: 277
A43: CRI | B43: Costa Rica | C43: 0.89 | D43: 0.69 | E43: 61381.5
A44: CIV | B44: Cote d'Ivoire | C44: 0.68 | D44: 0.01 | E44: 884803
A45: HRV | B45: Croatia | C45: 0.89 | D45: 0.9 | E45: 35075.5
A46: CUB | B46: Cuba | C46: 0.99 | D46: 0.99 | E46: 102559.5
A47: CYP | B47: Cyprus | C47: 0.86 | D47: 0.88 | E47: 12964
A48: CZE | B48: Czech Rep. | C48: 0.97 | D48: 0.9 | E48: 105331.5
A49: DNK | B49: Denmark | C49: 0.95 | D49: 0.94 | E49: 62495
A50: DJI | B50: Djibouti | C50: 0.5 | D50: 0.48 | E50: 23731
A51: DMA | B51: Dominica | C51: 0.92 | D51: 0.88 | E51: 951
A52: DOM | B52: Dominican Rep. | C52: 0.88 | D52: 0.6 | E52: 200801.5
A53: COD | B53: DRC | C53: 0.55 | D53: 0 | E53: 3813316
A54: ECU | B54: Ecuador | C54: 0.65 | D54: 0.58 | E54: 296920
A55: EGY | B55: Egypt | C55: 0.96 | D55: 0.96 | E55: 2435522
A56: SLV | B56: El Salvador | C56: 0.86 | D56: 0.71 | E56: 100357
A57: GNQ | B57: Equatorial Guinea | C57: 0.53 | D57: 0.17 | E57: 47635
A58: ERI | B58: Eritrea | C58: 0.93 | D58: 0.85 | E58: 100223.5
A59: EST | B59: Estonia | C59: 0.89 | D59: 0.84 | E59: 13801
A60: SWZ | B60: Eswatini | C60: 0.8 | D60: 0.69 | E60: 28062.5
A61: ETH | B61: Ethiopia | C61: 0.54 | D61: 0.46 | E61: 3754002.5
A62: FJI | B62: Fiji | C62: 0.96 | D62: 0.94 | E62: 17646
A63: FIN | B63: Finland | C63: 0.93 | D63: 0.93 | E63: 46790.5
A64: FRA | B64: France | C64: 0.92 | D64: 0.86 | E64: 657766.5
A65: GAB | B65: Gabon | C65: 0.64 | D65: 0 | E65: 61906
A66: GMB | B66: Gambia | C66: 0.79 | D66: 0.67 | E66: 84971
A67: GEO | B67: Georgia | C67: 0.9 | D67: 0.81 | E67: 49238
A68: DEU | B68: Germany | C68: 0.97 | D68: 0.93 | E68: 764994
A69: GHA | B69: Ghana | C69: 0.94 | D69: 0.83 | E69: 878147.5
A70: GRC | B70: Greece | C70: 0.97 | D70: 0.83 | E70: 80566
A71: GRD | B71: Grenada | C71: 0.83 | D71: 0.79 | E71: 1977.5
A72: GTM | B72: Guatemala | C72: 0.81 | D72: 0.72 | E72: 368640.5
A73: GIN | B73: Guinea | C73: 0.47 | D73: 0 | E73: 440646.5
A74: GNB | B74: Guinea-Bissau | C74: 0.63 | D74: 0 | E74: 61311
A75: GUY | B75: Guyana | C75: 0.94 | D75: 0.83 | E75: 15972
A76: HTI | B76: Haiti | C76: 0.65 | D76: 0.41 | E76: 259443.5
A77: HND | B77: Honduras | C77: 0.81 | D77: 0.75 | E77: 213746
A78: HUN | B78: Hungary | C78: 0.99 | D78: 0.99 | E78: 92629.5
A79: ISL | B79: Iceland | C79: 0.92 | D79: 0.1 | E79: 4552.5
A80: IND | B80: India | C80: 0.89 | D80: 0.82 | E80: 22600595
A81: IDN | B81: Indonesia | C81: 0.72 | D81: 0.5 | E81: 4435250
A82: IRN | B82: Iran | C82: 0.99 | D82: 0.98 | E82: 1210915
A83: IRQ | B83: Iraq | C83: 0.75 | D83: 0.84 | E83: 1164101.5
A84: IRL | B84: Ireland | C84: 0.9 | D84: 0 | E84: 59234
A85: ISR | B85: Israel | C85: 0.99 | D85: 0.93 | E85: 174648
A86: ITA | B86: Italy | C86: 0.92 | D86: 0.86 | E86: 409937
A87: JAM | B87: Jamaica | C87: 0.88 | D87: 0.85 | E87: 32860.5
A88: JPN | B88: Japan | C88: 0.98 | D88: 0.95 | E88: 823218
A89: JOR | B89: Jordan | C89: 0.76 | D89: 0.9 | E89: 241394
A90: KAZ | B90: Kazakhstan | C90: 0.97 | D90: 0.96 | E90: 417132.5
A91: KEN | B91: Kenya | C91: 0.89 | D91: 0.57 | E91: 1414928
A92: KIR | B92: Kiribati | C92: 0.8 | D92: 0.58 | E92: 3390.5
A93: KWT | B93: Kuwait | C93: 0.94 | D93: 0.94 | E93: 46760
A94: KGZ | B94: Kyrgyzstan | C94: 0.93 | D94: 0.97 | E94: 156947.5
A95: LAO | B95: Laos | C95: 0.73 | D95: 0.5 | E95: 158809
A96: LVA | B96: Latvia | C96: 0.97 | D96: 0.85 | E96: 16545.5
A97: LBN | B97: Lebanon | C97: 0.67 | D97: 0.59 | E97: 83772.5
A98: LSO | B98: Lesotho | C98: 0.9 | D98: 0.82 | E98: 56628
A99: LBR | B99: Liberia | C99: 0.58 | D99: 0.35 | E99: 154796.5
A100: LBY | B100: Libya | C100: 0.73 | D100: 0.72 | E100: 119904.5
A101: LTU | B101: Lithuania | C101: 0.88 | D101: 0.88 | E101: 26746
A102: LUX | B102: Luxembourg | C102: 0.99 | D102: 0.9 | E102: 6582.5
A103: MKD | B103: Macedonia | C103: 0.7 | D103: 0.8 | E103: 20111
A104: MDG | B104: Madagascar | C104: 0.39 | D104: 0.24 | E104: 862836
A105: MWI | B105: Malawi | C105: 0.9 | D105: 0.74 | E105: 633160
A106: MYS | B106: Malaysia | C106: 0.96 | D106: 0.84 | E106: 508935
A107: MDV | B107: Maldives | C107: 0.99 | D107: 0.96 | E107: 7392.5
A108: MLI | B108: Mali | C108: 0.7 | D108: 0.33 | E108: 862041
A109: MLT | B109: Malta | C109: 0.9 | D109: 0.93 | E109: 4668.5
A110: MHL | B110: Marshall Islands | C110: 0.85 | D110: 0.58 | E110: 830
A111: MRT | B111: Mauritania | C111: 0.63 | D111: 0 | E111: 146269
A112: MUS | B112: Mauritius | C112: 0.77 | D112: 0.64 | E112: 13280
A113: MEX | B113: Mexico | C113: 0.99 | D113: 0.97 | E113: 1902030.5
A114: FSM | B114: Micronesia | C114: 0.64 | D114: 0.38 | E114: 2297.5
A115: MDA | B115: Moldova | C115: 0.83 | D115: 0.92 | E115: 37941.5
A116: MCO | B116: Monaco | C116: 0.88 | D116: 0.8 | E116: 322
A117: MNG | B117: Mongolia | C117: 0.95 | D117: 0.94 | E117: 71912
A118: MNE | B118: Montenegro | C118: 0.18 | D118: 0.79 | E118: 7018.5
A119: MAR | B119: Morocco | C119: 0.99 | D119: 0.99 | E119: 644114
A120: MOZ | B120: Mozambique | C120: 0.84 | D120: 0.7 | E120: 1116415
A121: MMR | B121: Myanmar | C121: 0.44 | D121: 0.42 | E121: 896497
A122: NAM | B122: Namibia | C122: 0.9 | D122: 0.63 | E122: 67751.5
A123: NRU | B123: Nauru | C123: 0.98 | D123: 0.97 | E123: 341
A124: NPL | B124: Nepal | C124: 0.9 | D124: 0.87 | E124: 596958
A125: NLD | B125: Netherlands | C125: 0.93 | D125: 0.9 | E125: 176640
A126: NZL | B126: New Zealand | C126: 0.91 | D126: 0.82 | E126: 63744.5
A127: NIC | B127: Nicaragua | C127: 0.83 | D127: 0.83 | E127: 139140.5
A128: NER | B128: Niger | C128: 0.8 | D128: 0.66 | E128: 1087181.5
A129: NGA | B129: Nigeria | C129: 0.59 | D129: 0.36 | E129: 7435960
A130: NIU | B130: Niue | C130: 0.99 | D130: 0.99 | E130: 27
A131: PRK | B131: North Korea | C131: 0.42 | D131: 0.41 | E131: 340427
A132: NOR | B132: Norway | C132: 0.97 | D132: 0.95 | E132: 53543.5
A133: OMN | B133: Oman | C133: 0.99 | D133: 0.99 | E133: 77049.5
A134: PAK | B134: Pakistan | C134: 0.81 | D134: 0.79 | E134: 6093067.5
A135: PLW | B135: Palau | C135: 0.93 | D135: 0.84 | E135: 271.5
A136: PAN | B136: Panama | C136: 0.8 | D136: 0.97 | E136: 76109
A137: PNG | B137: Papua New Guinea | C137: 0.38 | D137: 0.2 | E137: 246277.5
A138: PRY | B138: Paraguay | C138: 0.68 | D138: 0.67 | E138: 136592
A139: PER | B139: Peru | C139: 0.78 | D139: 0.6 | E139: 589314
A140: PHL | B140: Philippines | C140: 0.57 | D140: 0.55 | E140: 2430020
A141: POL | B141: Poland | C141: 0.8 | D141: 0.95 | E141: 367056
A142: PRT | B142: Portugal | C142: 0.98 | D142: 0.95 | E142: 82668.5
A143: QAT | B143: Qatar | C143: 0.99 | D143: 0.99 | E143: 27562
A144: ROU | B144: Romania | C144: 0.86 | D144: 0.75 | E144: 196252
A145: RUS | B145: Russia | C145: 0.97 | D145: 0.96 | E145: 1418044.5
A146: RWA | B146: Rwanda | C146: 0.87 | D146: 0.85 | E146: 390887.5
A147: KNA | B147: Saint Kitts | C147: 0.96 | D147: 0.94 | E147: 581
A148: LCA | B148: Saint Lucia | C148: 0.77 | D148: 0.66 | E148: 2056
A149: VCT | B149: Saint Vincent | C149: 0.99 | D149: 0.99 | E149: 1343
A150: WSM | B150: Samoa | C150: 0.62 | D150: 0.5 | E150: 5882.5
A151: SMR | B151: San Marino | C151: 0.89 | D151: 0.81 | E151: 204
A152: STP | B152: Sao Tome | C152: 0.77 | D152: 0.69 | E152: 6190
A153: SAU | B153: Saudi Arabia | C153: 0.98 | D153: 0.97 | E153: 637710
A154: SEN | B154: Senegal | C154: 0.87 | D154: 0.75 | E154: 534566.5
A155: SRB | B155: Serbia | C155: 0.78 | D155: 0.84 | E155: 67829
A156: SYC | B156: Seychelles | C156: 0.94 | D156: 0.86 | E156: 1639.5
A157: SLE | B157: Sierra Leone | C157: 0.87 | D157: 0.67 | E157: 249995.5
A158: SGP | B158: Singapore | C158: 0.95 | D158: 0.84 | E158: 41960
A159: SVK | B159: Slovakia | C159: 0.95 | D159: 0.96 | E159: 54840
A160: SVN | B160: Slovenia | C160: 0.95 | D160: 0.91 | E160: 19288
A161: SLB | B161: Solomon Islands | C161: 0.67 | D161: 0.4 | E161: 20688.5
A162: SOM | B162: Somalia | C162: 0.46 | D162: 0.04 | E162: 696080
A163: ZAF | B163: South Africa | C163: 0.87 | D163: 0.82 | E163: 1161080
A164: KOR | B164: South Korea | C164: 0.98 | D164: 0.96 | E164: 291366.5
A165: SSD | B165: South Sudan | C165: 0.49 | D165: 0 | E165: 295787
A166: ESP | B166: Spain | C166: 0.95 | D166: 0.91 | E166: 351137
A167: LKA | B167: Sri Lanka | C167: 0.97 | D167: 0.97 | E167: 304804
A168: SDN | B168: Sudan | C168: 0.81 | D168: 0.63 | E168: 1477254.5
A169: SUR | B169: Suriname | C169: 0.58 | D169: 0.43 | E169: 10959.5
A170: SWE | B170: Sweden | C170: 0.97 | D170: 0.91 | E170: 114049.5
A171: CHE | B171: Switzerland | C171: 0.95 | D171: 0.94 | E171: 85819.5
A172: SYR | B172: Syria | C172: 0.59 | D172: 0.53 | E172: 413623.5
A173: TJK | B173: Tajikistan | C173: 0.97 | D173: 0.96 | E173: 255563
A174: TZA | B174: Tanzania | C174: 0.76 | D174: 0.62 | E174: 2216127
A175: THA | B175: Thailand | C175: 0.96 | D175: 0.87 | E175: 646440.5
A176: TLS | B176: Timor-Leste | C176: 0.79 | D176: 0.78 | E176: 31933.5
A177: TGO | B177: Togo | C177: 0.7 | D177: 0.5 | E177: 263971
A178: TON | B178: Tonga | C178: 0.99 | D178: 0.99 | E178: 2425
A179: TTO | B179: Trinidad | C179: 0.93 | D179: 0.88 | E179: 17760
A180: TUN | B180: Tunisia | C180: 0.95 | D180: 0.98 | E180: 197361
A181: TUR | B181: Turkey | C181: 0.96 | D181: 0.93 | E181: 1245242.5
A182: TKM | B182: Turkmenistan | C182: 0.97 | D182: 0.98 | E182: 134015.5
A183: TUV | B183: Tuvalu | C183: 0.93 | D183: 0.84 | E183: 258.5
A184: ARE | B184: UAE | C184: 0.99 | D184: 0.96 | E184: 97099.5
A185: UGA | B185: Uganda | C185: 0.9 | D185: 0 | E185: 1626930
A186: GBR | B186: UK | C186: 0.91 | D186: 0.87 | E186: 679052
A187: UKR | B187: Ukraine | C187: 0.88 | D187: 0.86 | E187: 335939
A188: URY | B188: Uruguay | C188: 0.96 | D188: 0.84 | E188: 35505.5
A189: USA | B189: USA | C189: 0.91 | D189: 0.95 | E189: 3689268
A190: UZB | B190: Uzbekistan | C190: 0.99 | D190: 0.99 | E190: 808376.5
A191: VUT | B191: Vanuatu | C191: 0.5 | D191: 0 | E191: 9195
A192: VEN | B192: Venezuela | C192: 0.68 | D192: 0.37 | E192: 444172
A193: VNM | B193: Viet Nam | C193: 0.89 | D193: 0.85 | E193: 1453562.5
A194: YEM | B194: Yemen | C194: 0.71 | D194: 0.52 | E194: 969879
A195: ZMB | B195: Zambia | C195: 0.9 | D195: 0.81 | E195: 644396
A196: ZWE | B196: Zimbabwe | C196: 0.85 | D196: 0.74 | E196: 472443.5

Sheet Wastage Data (hidden)
A1: Wastage Data
A2: Wastage | B2: 10-dose | C2: 5-dose | D2: Comments
A3: WHO/UNICEF Fact Sheet | B3: 0.4 | C3: 0.3 | D3: Wastage assumptions from the WHO/UNICEF M and MR Vaccine Five-dose vial Presentations Facts Sheet
A4: Zambia Study | B4: 0.3053 | C4: 0.1618 | D4: Wastage results from the Zambia study
A5: Manually enter wastage assumptions | B5: Manually enter | C5: Manually enter | D5: Enter your own wastage assumptions for the vial size shown

Sheet Program Costs (hidden)
A1: Program Costs
A2: Wastage | B2: Incremental Non-Vaccine Cost | C2: Comments
A3: Zambia Study | B3: 0.11 | C3: The Zambia study found that the incremental economic and financial cost per 5-dose vial administered was $0.11 (excluding the cost of the vaccine). Additional costs take into account cold chain, transport, outreach, human resources, and wastage disposal costs. Data came from the DPCP Zambia report.
A4: Manually enter program costs | B4: Manually enter | C4: Enter your own programmatic cost assumptions associated with switching to 5-dose vials. This is the incremental, non-vaccine costs per dose administered. Costs take into account things such as cold chain, transport, outreach, human resources, and wastage disposal costs.

Sheet Product Data (hidden)
A1: Product Data
A2: Vaccine | B2: Price per dose (UNICEF, 2023) | C2: Cold chain volume per dose (in cm3)
A3: Measles, SII 10-dose vial | B3: 0.423 | C3: =2.11+3.14 -> 5.25
A4: Measles, Bio Farma 10-dose vial | B4: 0.27 | C4: =3.3+2.53 -> 5.83
A5: MR, SII 10-dose vial | B5: 0.873 | C5: =2.1+3.14 -> 5.24
A6: MR, Bio E 10-dose vial | B6: 0.792 | C6: =1.78+2.12 -> 3.9
A7: MMR, SII 10-dose vial | B7: 1.709 | C7: =SUM(2.109+3.1424) -> 5.2514
A8: Measles, SII 5-dose vial | B8: 0.522 | C8: =3.16+5.48 -> 8.64
A9: MR, SII 5-dose vial | B9: 1.09 | C9: =3.16+5.49 -> 8.65
A10: MR, BioE 5-dose vial | B10: 0.918 | C10: =2.67+3.25 -> 5.92
A11: MMR, SII 5-dose vial | B11: 1.776 | C11: =4.218+5.481 -> 9.699

Sheet Gavi co-financing (hidden)
A1: Gavi co-financing status
A2: Initial self-financing
A3: Preparatory transition
A4: Accelerated transition
A5: Gavi graduated
A6: Non-Gavi
